[Event "76th Montenegro Championship 2024"]
[Site "Podgorica"]
[Date "2024.02.11"]
[Round "7.3"]
[White "Draganic, Veljko"]
[Black "Smirnov, Artem"]
[Result "0-1"]
[ECO "B32"]
[WhiteElo "2323"]
[BlackElo "2406"]
[Annotator "TA"]
[PlyCount "98"]
[EventDate "2024.02.06"]
[EventType "swiss"]
[EventCountry "MNE"]
[SourceTitle "playchess.com"]
[Source "ChessBase"]
[SourceQuality "1"]
[TimeControl "40/5400+30:1800+30"]

{[%evp 14,98,37,14,39,24,27,11,24,4,0,-8,15,-37,-24,-48,-52,-50,-53,-62,-37,-61,-41,-209,-68,-67,-73,-75,-21,-21,-27,-25,0,0,0,0,0,0,87,10,10,0,0,-10,-10,-17,-14,-13,-11,-5,0,-14,-18,-22,-20,-31,-17,-100,-108,-116,-108,-143,-137,-145,-137,-162,-157,-300,-295,-322,-321,-315,-271,-364,-385,-422,-428,-428,-407,-591,-543,-936,-887,-1220,-1216,-931,-679]} 1. e4 {[%emt 0:00:16]} c5 {[%emt 0:00:05]} 2. Nf3 {[%emt 0:00:08][%cal Bg1f3,Bf3d4,Bd4b5,Bb5a3,Ba3c4,Bc4e3][%mdl 32]} Nc6 {[%emt 0:00:05]} 3. d4 {[%emt 0:00:03]} cxd4 {[%emt 0:00:05]} 4. Nxd4 {[%emt 0:00:15]} e5 {[%emt 0:00:08]} 5. Nb5 {[%emt 0:00:07]} d6 {[%emt 0:00:05]} 6. N1c3 {[%emt 0:00:03]} a6 {[%emt 0:00:12]} 7. Na3 {[%emt 0:00:05]} Be6 {[%emt 0:00:08]} 8. Nc4 {[%emt 0:00:12]} Rb8 {[%emt 0:00:07]} 9. a3 {[%emt 0:01:00]} Qc7 {[%emt 0:29:37]} 10. Ne3 {[%emt 0:08:42]} Nf6 {[%emt 0:01:28] The position is equal.} 11. Bd3 {[%emt 0:10:40]} g6 $1 {[%emt 0:01:41]} 12. O-O {[%emt 0:07:03]} Bg7 {[%emt 0:03:01]} 13. Kh1 {[%emt 0:04:12]} (13. Ncd5 $11 Bxd5 14. Nxd5 (14. exd5 Ne7 $11) 14... Nxd5 15. exd5) 13... O-O {[%emt 0:06:33]} 14. f4 {[%emt 0:15:50]} exf4 {[%emt 0:00:51]} 15. Rxf4 {[%emt 0:02:34]} Ne5 {[%emt 0:09:48]} 16. Bd2 {[%emt 0:04:00]} Rbe8 {[%emt 0:12:59] Black is more active.} 17. Qe1 {[%emt 0:12:50][%cal Of4f6]} Qd8 {[%emt 0:09:41]} 18. Qf2 $2 {[%emt 0:16:45] [#]} ({White should play} 18. Be2 $15) 18... Nfg4 {[%emt 0:09:45]} (18... Nh5 $1 $19 {[%cal Rh5f4]} 19. Rf3 Nxf3 20. Qxf3 Nf6) 19. Qg3 {[%emt 0:04:25]} Nxe3 {[%emt 0:01:28]} 20. Bxe3 {[%emt 0:00:19]} f5 {[%emt 0:07:06]} (20... Nc4 $17 21. Bxc4 Bxc4) 21. exf5 $11 {[%emt 0:01:46]} Nxd3 {[%emt 0:01:23]} 22. cxd3 {[%emt 0:00:17]} Bxf5 {[%emt 0:01:22][%cal Og7e5] ...Be5! would now be deadly.} (22... Rxf5 {simplifies} 23. Rxf5 Bxf5 24. Bg1 b5) 23. Bd4 {[%emt 0:00:12]} Bh6 {[%emt 0:02:21] A strong pair of Bishops.} 24. Rff1 {[%emt 0:01:04]} d5 {[%emt 0:01:42]} 25. Rae1 {[%emt 0:01:32]} Qd7 {[%emt 0:00:19]} (25... Qg5 $11 {keeps the balance.}) 26. Rxe8 {[%emt 0:00:54]} (26. Qh4 $16 Bg7 27. Bxg7 Rxe1 28. Qxe1 (28. Rxe1 Qxg7 29. Re7 Rf7 $14) 28... Qxg7 29. Nxd5) 26... Rxe8 {[%emt 0:00:17]} 27. Qh4 {[%emt 0:00:36]} Bf8 {[%emt 0:00:54]} (27... Bxd3 $2 {loses.} 28. Rf3 Be4 29. Qxh6 $18) 28. Qf6 {[%emt 0:01:51]} Bg7 {[%emt 0:00:35]} 29. Qxg7+ {[%emt 0:02:09]} Qxg7 {[%emt 0:00:01]} 30. Bxg7 {[%emt 0:00:05]} Kxg7 {[%emt 0:00:04][%mdl 4096] Endgame. KRB-KRN} 31. d4 {[%emt 0:00:43]} Bd3 {[%emt 0:01:25]} 32. Rd1 {[%emt 0:00:37]} Bc2 {[%emt 0:00:31]} 33. Rc1 {[%emt 0:00:14]} Bb3 {[%emt 0:00:14]} 34. Kg1 {[%emt 0:00:26]} Re3 {[%emt 0:00:39]} 35. Kf2 {[%emt 0:00:45]} (35. Nb1 $11) 35... Rd3 $17 {[%emt 0:00:43]} 36. Re1 {[%emt 0:02:22]} Kf6 {[%emt 0:00:29] Against Re7} ({Don't take} 36... Rxd4 37. Re7+ Kh6 38. Ne2 $11) 37. Re3 {[%emt 0:00:25]} Rd2+ {[%emt 0:00:16]} (37... Rxd4 $2 {too greedy.} 38. Ne2 Rh4 39. Rxb3 $18) 38. Re2 {[%emt 0:00:56]} Rxd4 {[%emt 0:00:42]} 39. Ke3 {[%emt 0:01:25]} Ke5 {[%emt 0:00:35]} 40. g3 {[%emt 0:00:00]} (40. Kf2+ $17 {might work better.} Kf5 41. Re7) 40... Bc4 $19 {[%emt 0:00:00]} 41. Re1 {[%emt 0:02:47]} Rd3+ {[%emt 0:03:52]} 42. Kf2+ {[%emt 0:00:05]} Kd6 {[%emt 0:00:23]} 43. Rd1 {[%emt 0:00:17] Dodges Rd2+} Rxd1 {[%emt 0:05:32]} 44. Nxd1 {[%emt 0:00:03] KB-KN} Ke5 {[%emt 0:05:05]} 45. Ke3 {[%emt 0:02:04]} d4+ {[%emt 0:00:56]} 46. Kd2 {[%emt 0:00:16]} (46. Kf3 $142) 46... Ke4 {[%emt 0:00:46] Black is clearly winning.} 47. Nf2+ {[%emt 0:00:14]} Kf3 {[%emt 0:00:42]} 48. Nh3 {[%emt 0:00:45]} Kg2 {[%emt 0:03:31][%csl LRh2,LRh3]} 49. Ng5 {[%emt 0:01:08]} h6 {[%emt 0:00:45] Weighted Error Value: White=0.47/Black=0.14 (very precise) .  Loses game:     	White=1     	---        Mistake:       	White=5     	Black=3      Inaccurate:     	White=4     	---        OK:         	White=8     	Black=16     Best:        	---       	Black=6      Strong:       	---       	Black=1} 0-1

[Event "76th Montenegro Championship 2024"]
[Site "Podgorica"]
[Date "2024.02.11"]
[Round "7.4"]
[White "Nikcevic, Nebojsa"]
[Black "Tomic, Aleksandar"]
[Result "1-0"]
[ECO "E12"]
[WhiteElo "2338"]
[BlackElo "2398"]
[Annotator "RC"]
[PlyCount "155"]
[EventDate "2024.02.06"]
[EventType "swiss"]
[EventCountry "MNE"]
[SourceTitle "playchess.com"]
[Source "ChessBase"]
[SourceQuality "1"]
[TimeControl "40/5400+30:1800+30"]

1. d4 {[%emt 0:00:02]} Nf6 {[%emt 0:09:16]} 2. Nf3 {[%emt 0:00:54]} e6 {[%emt 0:00:29]} 3. c4 {[%emt 0:00:23]} b6 {[%emt 0:00:13]} 4. Nc3 {[%emt 0:00:30]} Bb4 {[%emt 0:01:26]} 5. Bg5 {[%emt 0:00:28]} Bb7 {[%emt 0:05:47]} 6. Rc1 {[%emt 0:00:18]} h6 {[%emt 0:00:53]} 7. Bh4 {[%emt 0:00:10]} g5 {[%emt 0:00:09]} 8. Bg3 {[%emt 0:00:04]} Ne4 {[%emt 0:00:06]} 9. Nd2 {[%emt 0:00:07]} Bxc3 {[%emt 0:00:14]} 10. bxc3 {[%emt 0:00:05]} Nxg3 {[%emt 0:00:05]} 11. fxg3 {[%emt 0:00:07]} d6 {[%emt 0:02:27]} 12. e4 {[%emt 0:00:28]} Nd7 {[%emt 0:03:23]} 13. Bd3 {[%emt 0:04:30]} Qe7 {[%emt 0:04:59]} 14. O-O {[%emt 0:01:02]} O-O-O {[%emt 0:00:46]} 15. a4 {[%emt 0:04:48]} a5 {[%emt 0:00:57]} 16. Qe2 {[%emt 0:02:07]} h5 {[%emt 0:17:24]} 17. h3 {[%emt 0:00:29]} Kb8 {[%emt 0:04:57]} 18. Rb1 {[%emt 0:01:10]} Ka7 {[%emt 0:01:32]} 19. Rb2 {[%emt 0:05:01]} c5 {[%emt 0:11:44]} 20. Nb1 {[%emt 0:20:41]} Ba6 {[%emt 0:04:59]} 21. Na3 {[%emt 0:00:52]} h4 {[%emt 0:05:01]} 22. g4 {[%emt 0:02:37]} Rhf8 {[%emt 0:00:31]} 23. Nc2 {[%emt 0:05:16]} Rc8 {[%emt 0:01:32]} 24. Ne3 {[%emt 0:00:50]} Rb8 {[%emt 0:02:25]} 25. Rf3 {[%emt 0:00:21]} Bb7 {[%emt 0:02:15]} 26. Qf1 {[%emt 0:02:51]} Ba8 {[%emt 0:04:57]} 27. Rbf2 {[%emt 0:02:46]} f6 {[%emt 0:00:17]} 28. Re2 {[%emt 0:03:18]} Bb7 {[%emt 0:01:22]} 29. Qb1 {[%emt 0:02:54]} Ba6 {[%emt 0:04:03]} 30. Rff2 {[%emt 0:04:27]} Bb7 {[%emt 0:01:01]} 31. Nc2 {[%emt 0:04:16]} Ba6 {[%emt 0:00:30]} 32. Ne3 {[%emt 0:02:16]} Bb7 {[%emt 0:00:27]} 33. Rb2 {[%emt 0:04:48]} Ba6 {[%emt 0:01:28]} 34. Rb3 {[%emt 0:00:21]} Rfc8 {[%emt 0:04:07]} 35. Qf1 {[%emt 0:26:43]} Bb7 {[%emt 0:02:36]} 36. Kh1 {[%emt 0:00:00]} Rf8 {[%emt 0:00:22]} 37. Qa1 {[%emt 0:00:00]} Rfc8 {[%emt 0:01:01]} 38. Nc2 {[%emt 0:00:00]} Ba6 {[%emt 0:00:19]} 39. Ne3 {[%emt 0:00:00]} Bb7 {[%emt 0:00:40]} 40. Rb1 {[%emt 0:00:00]} Ba6 {[%emt 0:00:00]} 41. Rbf1 {[%emt 0:00:00]} Rf8 {[%emt 0:02:44]} 42. Qb1 {[%emt 0:00:00]} Bb7 {[%emt 0:01:16]} 43. Be2 {[%emt 0:00:00]} Ba6 {[%emt 0:05:25]} 44. Bf3 {[%emt 0:00:00]} Rfc8 {[%emt 0:04:32]} 45. e5 {[%emt 0:00:00]} cxd4 {[%emt 0:19:03]} 46. exf6 {[%emt 0:00:00]} Qxf6 {[%emt 0:02:55]} 47. cxd4 {[%emt 0:33:57]} Qxd4 {[%emt 0:00:21]} 48. Qh7 {[%emt 0:01:24]} Rc7 {[%emt 0:00:18]} 49. Re2 {[%emt 0:00:15]} Qc5 {[%emt 0:00:49]} 50. Qg6 {[%emt 0:01:04]} Ne5 {[%emt 0:00:38]} 51. Qxe6 {[%emt 0:00:47]} Bxc4 {[%emt 0:00:24]} 52. Nxc4 {[%emt 0:00:26]} Qxc4 {[%emt 0:00:12]} 53. Qxd6 {[%emt 0:00:35]} Nxf3 {[%emt 0:00:50]} 54. Rxf3 {[%emt 0:00:04]} Qxe2 {[%emt 0:00:45]} 55. Qxc7+ {[%emt 0:00:04]} Rb7 {[%emt 0:00:05]} 56. Qc1 {[%emt 0:00:22]} Rd7 {[%emt 0:00:56]} 57. Qxg5 {[%emt 0:00:49]} Qd1+ {[%emt 0:00:32]} 58. Kh2 {[%emt 0:00:05]} Qxa4 {[%emt 0:00:24]} 59. Qxh4 {[%emt 0:00:15]} Qd4 {[%emt 0:00:37]} 60. Qg3 {[%emt 0:00:16]} a4 {[%emt 0:00:30]} 61. g5 {[%emt 0:00:04]} Qd6 {[%emt 0:00:32]} 62. Qxd6 {[%emt 0:00:58]} Rxd6 {[%emt 0:00:05]} 63. h4 {[%emt 0:00:13]} Kb7 {[%emt 0:00:52]} 64. Kh3 {[%emt 0:01:25]} b5 {[%emt 0:00:25]} 65. h5 {[%emt 0:00:11]} Rd5 {[%emt 0:00:38]} 66. g4 {[%emt 0:00:50]} b4 {[%emt 0:00:22]} 67. Rf4 {[%emt 0:00:33]} Rb5 {[%emt 0:00:37]} 68. g6 {[%emt 0:00:41]} a3 {[%emt 0:00:29]} 69. g7 {[%emt 0:00:27]} a2 {[%emt 0:00:24]} 70. g8=Q {[%emt 0:00:07]} a1=Q {[%emt 0:00:32]} 71. Rf7+ {[%emt 0:00:14]} Kc6 {[%emt 0:00:35]} 72. Qc8+ {[%emt 0:01:08]} Kd5 {[%emt 0:00:16]} 73. Rd7+ {[%emt 0:00:33]} Ke4 {[%emt 0:00:41]} 74. Qc4+ {[%emt 0:00:05]} Kf3 {[%emt 0:00:33]} 75. Rd3+ {[%emt 0:00:07]} Kf2 {[%emt 0:00:27]} 76. Rd2+ {[%emt 0:00:29]} Kg1 {[%emt 0:00:21]} 77. Qxb5 {[%emt 0:01:42]} Qc3+ {[%emt 0:00:43]} 78. Qd3 {[%emt 0:00:12]} 1-0

[Event "76th Montenegro Championship 2024"]
[Site "Podgorica"]
[Date "2024.02.11"]
[Round "7.5"]
[White "Zherebtsova, Alexandra"]
[Black "Vukcevic, Nemanja"]
[Result "0-1"]
[ECO "E90"]
[WhiteElo "2270"]
[BlackElo "2275"]
[Annotator "TA"]
[PlyCount "136"]
[EventDate "2024.02.06"]
[EventType "swiss"]
[EventCountry "MNE"]
[SourceTitle "playchess.com"]
[Source "ChessBase"]
[SourceQuality "1"]
[TimeControl "40/5400+30:1800+30"]

{[%evp 24,136,36,47,34,32,30,31,38,31,30,0,0,0,10,-83,9,5,9,0,0,-8,0,0,0,0,21,0,10,8,2,14,18,0,0,0,31,0,0,0,0,0,0,-168,-168,-168,-168,-143,-115,-115,-115,-115,-115,-115,-115,-115,-115,-115,-115,-115,-115,-115,-115,-101,-100,-107,-105,-113,-98,-93,-100,-91,-93,-102,-107,-107,-107,-103,-95,-201,-168,-182,-189,-367,-365,-425,-402,-605,-555,-752,-899,-954,-909,-791,-763,-1587,-1700,-6531,-6245,-29971,-29971,-29974,-29975,-29981,-29982,-29983,-29984,-29984,-29985,-29986,-29987,-29987,-29988,-29988,-29989]} 1. d4 {[%emt 0:02:47]} Nf6 {[%emt 0:00:05]} 2. c4 {[%emt 0:00:07]} c5 {[%emt 0:00:27]} 3. d5 {[%emt 0:00:14]} g6 {[%emt 0:00:17]} 4. Nc3 {[%emt 0:02:15]} Bg7 {[%emt 0:00:11]} 5. e4 {[%emt 0:01:39]} d6 {[%emt 0:00:33]} 6. Bd3 {[%emt 0:03:25]} O-O {[%emt 0:00:15]} 7. h3 {[%emt 0:01:42]} e6 {[%emt 0:00:09]} 8. Nf3 {[%emt 0:02:45]} Nbd7 {[%emt 0:00:08]} 9. Be3 {[%emt 0:11:58]} exd5 {[%emt 0:13:10]} 10. exd5 {[%emt 0:01:11]} Re8 {[%emt 0:03:41]} 11. O-O {[%emt 0:00:51]} a6 {[%emt 0:02:57]} 12. a4 {[%emt 0:01:59]} Nh5 {[%emt 0:19:47]} 13. Qd2 {[%emt 0:30:11]} f5 {[%emt 0:01:49][%cal Of5f4]} 14. Rfe1 {[%emt 0:06:40]} Ne5 {[%emt 0:08:57]} 15. Nxe5 {[%emt 0:06:13]} Rxe5 {[%emt 0:01:46] White is slightly better.} 16. Bg5 {[%emt 0:02:31]} Qf8 {[%emt 0:00:31]} 17. f4 {[%emt 0:03:56]} Rxe1+ {[%emt 0:02:24]} 18. Rxe1 {[%emt 0:00:03]} Nf6 {[%emt 0:02:33]} 19. Qf2 {[%emt 0:06:14] [#]} (19. b3 $11) 19... h6 {[%emt 0:03:18]} (19... Ne4 $1 $17 {[%cal Re4f2]} 20. Bxe4 (20. Nxe4 fxe4 21. Rxe4 Bf5 $17) 20... Bd4) 20. Bh4 $11 {[%emt 0:00:19]} Bd7 {[%emt 0:01:09]} 21. Qc2 {[%emt 0:01:52]} Re8 {[%emt 0:01:29]} 22. Qd2 {[%emt 0:02:32]} Nh5 {[%emt 0:01:48]} 23. Be2 {[%emt 0:01:23]} Bf6 {[%emt 0:10:33]} 24. Bf2 {[%emt 0:01:52]} Ng7 {[%emt 0:00:44]} 25. Bd1 {[%emt 0:00:57]} g5 {[%emt 0:01:18][%cal Bg6g5,Bg5g4][%mdl 32]} 26. Kf1 {[%emt 0:04:39]} Rxe1+ {[%emt 0:01:41]} 27. Bxe1 {[%emt 0:01:07]} g4 {[%emt 0:01:31]} 28. h4 {[%emt 0:01:26]} Qe7 {[%emt 0:00:52]} 29. g3 {[%emt 0:00:25]} Bd4 {[%emt 0:02:16]} 30. Bf2 {[%emt 0:00:51]} Nh5 {[%emt 0:01:20]} 31. Bc2 {[%emt 0:00:35]} Qf6 {[%emt 0:03:27]} 32. Kg2 {[%emt 0:00:56] aiming for Bxd4.} Bxc3 {[%emt 0:01:10]} 33. Qxc3 {[%emt 0:00:28] [#]} (33. bxc3 $11 {and White has nothing to worry.} Kf7 34. Qe1) 33... Qxc3 $19 {[%emt 0:00:14]} 34. bxc3 $11 {[%emt 0:00:03][%mdl 4096] Endgame. KBB-KBN} Kf7 {[%emt 0:01:14]} 35. Kf1 {[%emt 0:00:36]} Ke7 {[%emt 0:00:38]} 36. Ke2 {[%emt 0:00:22]} Kd8 {[%emt 0:01:41]} 37. a5 {[%emt 0:00:42]} Kc7 {[%emt 0:02:39]} 38. Kd2 {[%emt 0:00:07]} b6 {[%emt 0:00:35]} 39. axb6+ {[%emt 0:00:28]} Kxb6 {[%emt 0:00:05]} 40. Kc1 {[%emt 0:00:00]} Ka5 {[%emt 0:00:00]} 41. Kb2 {[%emt 0:00:46]} Nf6 {[%emt 0:09:22]} 42. Be3 {[%emt 0:01:39]} Ng8 {[%emt 0:00:28]} 43. Ka3 {[%emt 0:02:51]} Ne7 {[%emt 0:00:25]} 44. Bf2 {[%emt 0:04:05]} Nc8 {[%emt 0:00:06]} 45. Be1 {[%emt 0:01:40]} Kb6 {[%emt 0:00:09]} 46. Kb2 {[%emt 0:11:15]} Kc7 {[%emt 0:00:26]} 47. Bd3 {[%emt 0:05:25]} Nb6 {[%emt 0:00:20]} 48. Ka3 {[%emt 0:01:17]} Kd8 {[%emt 0:00:12]} 49. Bf2 {[%emt 0:00:22]} Ke7 {[%emt 0:00:08]} 50. Be1 {[%emt 0:00:35]} Kf6 {[%emt 0:00:33]} 51. Bf2 {[%emt 0:00:23]} (51. Kb2 $17 {is a better defense.}) 51... Bc8 $19 {[%emt 0:00:53]} 52. Be1 {[%emt 0:00:24]} a5 {[%emt 0:00:19]} 53. Kb3 $2 {[%emt 0:02:42]} (53. Bd2) 53... Ba6 {[%emt 0:00:28]} 54. Bf1 {[%emt 0:00:25]} a4+ {[%emt 0:00:27]} 55. Ka3 {[%emt 0:00:10]} (55. Kb2 $142) 55... Bxc4 {[%emt 0:00:46]} ({Not} 55... Nxc4+ 56. Ka2 $11) 56. Bxc4 {[%emt 0:00:10]} Nxc4+ {[%emt 0:00:05]} 57. Kxa4 {[%emt 0:00:30] KB-KN} Nb6+ {[%emt 0:01:00]} 58. Kb5 {[%emt 0:01:28]} Nxd5 {[%emt 0:00:05]} 59. Kc6 {[%emt 0:02:02]} Ke6 {[%emt 0:00:15]} 60. Bd2 {[%emt 0:00:12]} Nf6 {[%emt 0:00:49]} 61. Be1 {[%emt 0:00:38]} Ne4 {[%emt 0:00:50] Black mates.} 62. c4 {[%emt 0:00:28]} h5 {[%emt 0:00:05]} 63. Kc7 {[%emt 0:00:58]} d5 {[%emt 0:00:10]} 64. cxd5+ {[%emt 0:00:07]} Kxd5 {[%emt 0:00:04]} 65. Kd7 {[%emt 0:00:06]} c4 {[%emt 0:00:32]} 66. Ke7 {[%emt 0:00:04]} c3 {[%emt 0:00:28]} 67. Bxc3 {[%emt 0:00:04]} Nxc3 {[%emt 0:00:06]} 68. Kf6 {[%emt 0:00:04]} Ne4+ {[%emt 0:00:19] Weighted Error Value: White=0.54/Black=0.05 (flawless) .  Loses game:     	White=1     	---        Mistake:       	White=4     	Black=1      Inaccurate:     	White=3     	Black=1      OK:         	White=8     	Black=20     Best:        	White=1     	Black=2} 0-1

[Event "76th Montenegro Championship 2024"]
[Site "Podgorica"]
[Date "2024.02.11"]
[Round "7.6"]
[White "Milovic, Jovan"]
[Black "Kalezic, Blazo"]
[Result "1/2-1/2"]
[ECO "D04"]
[WhiteElo "2223"]
[BlackElo "2407"]
[Annotator "RC"]
[PlyCount "38"]
[EventDate "2024.02.06"]
[EventType "swiss"]
[EventCountry "MNE"]
[SourceTitle "playchess.com"]
[Source "ChessBase"]
[SourceQuality "1"]
[TimeControl "40/5400+30:1800+30"]

1. d4 {[%emt 0:03:45]} d5 {[%emt 0:00:12]} 2. Nf3 {[%emt 0:00:17]} Nf6 {[%emt 0:00:21]} 3. e3 {[%emt 0:00:41]} c6 {[%emt 0:01:10]} 4. Bd3 {[%emt 0:00:30]} Bg4 {[%emt 0:00:46]} 5. h3 {[%emt 0:00:23]} Bh5 {[%emt 0:01:49]} 6. c4 {[%emt 0:01:07]} e6 {[%emt 0:00:33]} 7. Qb3 {[%emt 0:00:29]} Qb6 {[%emt 0:01:03]} 8. Ne5 {[%emt 0:01:57]} Nbd7 {[%emt 0:01:55]} 9. f4 {[%emt 0:00:30]} Bg6 {[%emt 0:04:05]} 10. Nxg6 {[%emt 0:02:13]} hxg6 {[%emt 0:01:01]} 11. Nc3 {[%emt 0:00:42]} Be7 {[%emt 0:03:30]} 12. O-O {[%emt 0:01:05]} Nh5 {[%emt 0:16:19]} 13. Qxb6 {[%emt 0:09:47]} axb6 {[%emt 0:01:12]} 14. cxd5 {[%emt 0:01:30]} exd5 {[%emt 0:00:26]} 15. g4 {[%emt 0:01:59]} Nhf6 {[%emt 0:00:09]} 16. Kg2 {[%emt 0:00:18]} O-O-O {[%emt 0:00:47]} 17. Bd2 {[%emt 0:01:28]} Ne8 {[%emt 0:01:08]} 18. a4 {[%emt 0:02:57]} Nc7 {[%emt 0:01:51]} 19. Na2 {[%emt 0:05:51]} Rde8 {[%emt 0:04:08]} 1/2-1/2

[Event "76th Montenegro Championship 2024"]
[Site "Podgorica"]
[Date "2024.02.11"]
[Round "7.7"]
[White "Ivanovic, Bozidar"]
[Black "Pobor, Milo"]
[Result "1/2-1/2"]
[ECO "D36"]
[WhiteElo "2403"]
[BlackElo "2201"]
[Annotator "TA"]
[PlyCount "27"]
[EventDate "2024.02.06"]
[EventType "swiss"]
[EventCountry "MNE"]
[SourceTitle "playchess.com"]
[Source "ChessBase"]
[SourceQuality "1"]
[TimeControl "40/5400+30:1800+30"]

{[%evp 22,27,26,18,48,41,56,53]} 1. d4 {[%emt 0:02:22]} Nf6 {[%emt 0:00:07]} 2. c4 {[%emt 0:00:09]} e6 {[%emt 0:00:04]} 3. Nf3 {[%emt 0:00:10]} d5 {[%emt 0:00:06]} 4. cxd5 {[%emt 0:00:10]} exd5 {[%emt 0:00:05]} 5. Nc3 {[%emt 0:00:09]} c6 {[%emt 0:00:07]} 6. Bg5 {[%emt 0:00:23]} Be7 {[%emt 0:00:10]} 7. e3 {[%emt 0:00:08]} Nbd7 {[%emt 0:00:11]} 8. Bd3 {[%emt 0:00:11]} h6 {[%emt 0:00:25]} 9. Bh4 {[%emt 0:00:14]} Nh5 {[%emt 0:00:09]} 10. Bxe7 {[%emt 0:00:10]} Qxe7 {[%emt 0:00:06]} 11. O-O {[%emt 0:00:08]} O-O {[%emt 0:00:09]} 12. Qc2 {[%emt 0:01:58]} Nb6 {[%emt 0:01:10]} 13. Ne5 {[%emt 0:01:13]} Nf6 {[%emt 0:01:58] Repels Bh7+} 14. f4 {[%emt 0:00:16] Weighted Error Value: White=0.07 (flawless) /Black=0.13 (very precise) .  OK:         	---       	Black=1} 1/2-1/2

[Event "76th Montenegro Championship 2024"]
[Site "Podgorica"]
[Date "2024.02.11"]
[Round "7.8"]
[White "Drasko, Milan"]
[Black "Vujovic, Savo"]
[Result "1-0"]
[ECO "E60"]
[WhiteElo "2339"]
[BlackElo "2137"]
[Annotator "TA"]
[PlyCount "51"]
[EventDate "2024.02.06"]
[EventType "swiss"]
[EventCountry "MNE"]
[SourceTitle "playchess.com"]
[Source "ChessBase"]
[SourceQuality "1"]
[TimeControl "40/5400+30:1800+30"]

{[%evp 11,51,31,33,37,50,0,0,-12,0,0,24,26,26,14,94,96,139,101,215,218,231,166,154,155,209,193,208,187,207,185,285,298,425,423,382,144,341,341,340,341,1355,1335]} 1. Nf3 {[%emt 0:00:09]} Nf6 {[%emt 0:00:08]} 2. g3 {[%emt 0:00:21]} g6 {[%emt 0:00:07]} 3. Bg2 {[%emt 0:00:32]} Bg7 {[%emt 0:00:05]} 4. d4 {[%emt 0:02:25]} O-O {[%emt 0:00:08]} 5. c4 {[%emt 0:03:38]} d6 {[%emt 0:00:18]} 6. O-O {[%emt 0:00:50]} Bf5 {[%emt 0:00:35]} 7. Qb3 {[%emt 0:13:13]} Qc8 {[%emt 0:00:16]} 8. Be3 {[%emt 0:05:09]} (8. Nh4 $14 Be4 9. Nf3) 8... Nc6 {[%emt 0:03:08]} 9. Rd1 {[%emt 0:12:25] The position is equal.} Ng4 {[%emt 0:19:56]} 10. Bc1 {[%emt 0:07:14]} Bxb1 {[%emt 0:11:33]} 11. Rxb1 {[%emt 0:00:08]} Qf5 {[%emt 0:02:12]} 12. Qd3 {[%emt 0:10:51]} (12. Be3 {simplifies} Nxe3 13. Qxe3 Rab8 14. d5) 12... Bxd4 {[%emt 0:20:42]} 13. Nxd4 $16 {[%emt 0:00:51]} Qxf2+ {[%emt 0:00:08]} 14. Kh1 {[%emt 0:00:05]} Nxd4 {[%emt 0:02:35]} (14... Qf6 $16 {was called for.} 15. Qd2 Nxd4 (15... Nf2+ $2 16. Kg1 $18) 16. Qxd4 Nf2+ 17. Kg1 Nxd1 18. Qxd1 c6) 15. Qxd4 $18 {[%emt 0:06:40]} Qxe2 {[%emt 0:00:25]} 16. Rd2 {[%emt 0:05:08]} (16. Bxb7 $2 Qxh2#) 16... Qe1+ {[%emt 0:03:40]} 17. Qg1 {[%emt 0:00:07]} Qe5 {[%emt 0:04:08]} (17... Qxg1+ $16 {was necessary.} 18. Kxg1 Ne3) 18. b3 {[%emt 0:05:01]} c6 {[%emt 0:02:12]} 19. Bb2 $36 {[%emt 0:00:38][%mdl 2048] Keeping Black busy.} Qg5 {[%emt 0:00:08]} 20. Re2 {[%emt 0:02:54]} e5 {[%emt 0:03:40]} (20... Ne5 $142 21. Rbe1 f6) 21. Rd1 {[%emt 0:02:51]} f5 {[%emt 0:03:26]} (21... Rfd8 {is a better defense.} 22. h3 Nh6) 22. Rxd6 {[%emt 0:06:29]} Rad8 {[%emt 0:06:51]} 23. Bxe5 {[%emt 0:02:39]} (23. c5 $18 {and White stays clearly on top.}) 23... Qe7 $2 {[%emt 0:01:08] [#]} (23... Rde8 $16) 24. Rxd8 $1 {[%emt 0:06:55]} Rxd8 {[%emt 0:00:05] [#]} 25. Qa1 {[%emt 0:00:15] Strongly threatening Bh8.} Re8 $2 {[%emt 0:00:52] [#]} (25... Kf7 26. Bf3 Nxe5 27. Rxe5 (27. Qxe5 Qxe5 28. Rxe5 h5 $18) 27... Qf6) 26. Bh8 $1 {[%emt 0:00:12] Weighted Error Value: White=0.29 (precise) /Black=0.42.  Loses game:     	---       	Black=1      Missed win:     	White=1     	---        Mistake:       	White=1     	Black=6      OK:         	White=7     	Black=3      Best:        	White=2     	Black=1      Strong:       	White=1     	---} 1-0